Cogmind - Beta 13 @@@ ROGUE MODE // 2024.03.31 @ 14:32:13 Player: TheRobAwesome Result: Self-destructed Performance ------------- Evolutions (4) 2000 Regions Visited (7) 1400 Robots Destroyed (77) 385 Value Destroyed (2688) 2688 Prototype IDs (12) 240 Alien Tech Used (0) 0 Bonus (408) 408 TOTAL SCORE: 7121 Bonus ------- High Alert Combat Kills 121 Follower Combat Kills 91 Aligned with FarCom 300 Friendly Fire -104 Cogmind --------- Core Integrity 484/850 Matter 300/300 Energy 66/100 System Corruption 5% Temperature Cool (0) Movement Core (50) Location -6/Factory Parts ------- > --- POWER (3) -------- (None) > --- PROPULSION (4) --- (None) > --- UTILITY (5) ------ Improved Targeting Computer > --- WEAPON (3) ------- (None) > --- INVENTORY (5) ---- Micro Nuclear Core Component Analysis Suite Heavy Rocket Launcher Remote Datajack Peak State ------------ > --- POWER ------------ Light Nuclear Core > --- PROPULSION ------- Armored Treads Hover Unit Combat Airjet > --- UTILITY ---------- Improved Signal Interpreter ECM Suite Core Shielding > --- WEAPON ----------- YOLO Cannon Katana > --- INVENTORY -------- Recalibrator High-powered Field Laser Minigun Rocket Launcher [Rating: 41] Favorites ----------- Power Light Nuclear Core Engine Ion Engine Power Core Light Nuclear Core Propulsion Aluminum Leg Treads Light Treads Leg Aluminum Leg Wheel Compact Wheel Hover Unit Combat Airjet Flight Unit VTOL Module Utility Signal Interpreter Device ECM Suite Storage High-capacity Battery Processor Signal Interpreter Protection Core Shielding Weapon Minigun Energy Gun High-powered Field Laser Energy Cannon YOLO Cannon Ballistic Gun Minigun Ballistic Cannon Light Cannon Launcher Heavy Rocket Launcher Special Weapon Remote Datajack Slashing Weapon Katana Special Melee Weapon Datajack Build | -11 -10 -10 -10 -9 -8 -7 -6 ------- Run | Yrd Mat Min Exi Min Mat Fac Fac Slots Evolved 8 | . . . . . 4 2 2 Power 2 | . . . . . . 1 1 Propulsion 2 | . . . . . 1 . 1 Utility 3 | . . . . . 2 1 . Weapon 1 | . . . . . 1 . . Parts Attached 107 | 6 15 2 2 4 26 45 7 Power 20 | 1 2 . . 1 6 9 1 Engine 6 | 1 1 . . . 3 1 . Core 14 | . 1 . . 1 3 8 1 Reactor . | . . . . . . . . Propulsion 33 | 2 4 1 . 3 9 13 1 Treads 6 | 2 . . . . 4 . . Leg 14 | . 4 . . 2 1 7 . Wheel 1 | . . . . 1 . . . Hover 6 | . . 1 . . 4 . 1 Flight 6 | . . . . . . 6 . Utility 23 | 1 5 . 1 . 4 11 1 Device 13 | . 2 . . . 1 9 1 Storage 4 | 1 1 . 1 . 1 . . Processor 4 | . 1 . . . 1 2 . Hackware . | . . . . . . . . Protection 2 | . 1 . . . 1 . . Artifact . | . . . . . . . . Weapon 31 | 2 4 1 1 . 7 12 4 Energy Gun 10 | . . . . . 3 4 3 Energy Cannon 2 | . . . 1 . 1 . . Ballistic Gun 10 | 2 1 1 . . 2 4 . Ballistic Cannon 2 | . 2 . . . . . . Launcher 2 | . . . . . . 1 1 Special Weapon 3 | . . . . . . 3 . Impact Weapon . | . . . . . . . . Slashing Weapon 1 | . . . . . 1 . . Piercing Weapon . | . . . . . . . . Special Melee Weapon 1 | . 1 . . . . . . Unidentified Prototypes 2 | . . . 1 . 1 . . Parts Lost 38 | . 4 4 . 2 7 10 11 Power 9 | . 1 1 . . 2 3 2 Propulsion 16 | . 2 1 . 2 3 4 4 Utility 6 | . . . . . 1 1 4 Weapon 7 | . 1 2 . . 1 2 1 Highest Loss Streak 10 | . 3 4 . 1 4 4 10 To Critical Strikes . | . . . . . . . . Average Slot Usage (%) 78 | . 93 72 57 82 76 83 51 Engine 2 | . 10 5 . . 2 . . Core 6 | . 2 . . 12 4 12 8 Treads 3 | . 9 . . . 5 1 . Leg 8 | . 17 11 . 12 3 10 . Hover 5 | . . 7 14 7 10 . 2 Flight 2 | . . . . . . 8 10 Device 7 | . 7 . . . 8 12 14 Storage 3 | . 5 . 1 14 4 . . Processor 13 | . 11 14 14 14 9 19 12 Protection 4 | . . 14 12 . 9 . . Energy Gun 1 | . . . . . 4 . 3 Energy Cannon 4 | . . . 10 14 6 . . Ballistic Gun 8 | . 19 12 3 . 2 14 . Ballistic Cannon 1 | . 4 5 . . . . . Slashing Weapon 1 | . . . . . 4 . . Naked Turns . | . . . . . . . . Heaviest Build 40 | 14 20 11 22 27 40 27 21 Greatest Support 51 | 40 40 20 12 20 40 51 20 Greatest Overweight (x) 7 | . 1 . 1 2 7 1 1 Average Overweight (x) . | . . . . 1 1 . . Largest Inventory Capacity 10 | 8 10 5 5 5 10 5 5 Average Capacity 5 | 7 6 5 5 5 5 5 5 Most Carried 6 | 5 6 5 5 5 5 5 5 Average Carried 4 | 1 3 4 3 4 3 4 4 Final Capacity 8 | 8 5 5 5 5 5 5 5 Final Carried 5 | . 5 5 4 5 2 5 4 Class Distribution -------------------- 56% | Mutant 12% | Scavenger-Gunner 8% | Scavenger-Sprinter 8% | Scavenger-Mutant 3% | Gunner 3% | Skirmisher 3% | Scavenger-Skirmisher Dominant Class ---------------- Mutant | -10/Materials Mutant | -10/Mines Mutant | -10/Exiles Mutant | -9/Mines Mutant | -8/Materials Scavenger-Gunner | -7/Factory Scout | -6/Factory Resources | -11 -10 -10 -10 -9 -8 -7 -6 ----------- Run | Yrd Mat Min Exi Min Mat Fac Fac Matter Collected 1903 | 184 422 44 . 60 225 824 144 Remotely . | . . . . . . . . Salvage Created 2732 | . 491 . . 142 927 909 263 Parts 165 | . 36 . . 10 52 51 16 Haulers Intercepted 2 | . . . . . 1 . 1 Recyclers Shooed 1 | . 1 . . . . . . Parts Field Recycled . | . . . . . . . . Retrieved Matter . | . . . . . . . . Parts Self-Destructed . | . . . . . . . . Prevented . | . . . . . . . . Kills | -11 -10 -10 -10 -9 -8 -7 -6 ------- Run | Yrd Mat Min Exi Min Mat Fac Fac Combat Hostiles Destroyed 58 | . 13 . . 5 18 19 3 Melee 5 | . . . . . 5 . . Guns 30 | . 8 . . . 2 19 1 Cannons 10 | . 5 . . 2 3 . . AOE 11 | . . . . 3 7 . 1 Classes Destroyed 12 | . 3 . . . 6 3 . Worker 2 | . . . . . 2 . . Builder 5 | . . . . . 4 . 1 Hauler 2 | . . . . . 1 . 1 Recycler 1 | . . . . . 1 . . Operator 2 | . . . . . 1 1 . Watcher 7 | . 2 . . . 2 1 2 Swarmer 11 | . 3 . . 1 3 4 . Grunt 39 | . 10 . . 4 14 9 2 Duelist 1 | . . . . . . 1 . Sentry 2 | . . . . . 1 1 . Hunter 4 | . . . . . . 3 1 Programmer 1 | . . . . . . 1 . Best Kill Streak 7 | . 5 . . 2 6 4 7 Combat Bots Only 5 | . 5 . . 2 4 4 2 Max Kills in Single Turn 3 | . 1 . . 2 3 2 2 Gunslinging 1 | . . . . . . 1 . Exploded 2 | . . . . 1 2 . 1 Melee 1 | . . . . . 1 . . Uniques/NPCs Destroyed . | . . . . . . . . Combat | -11 -10 -10 -10 -9 -8 -7 -6 -------- Run | Yrd Mat Min Exi Min Mat Fac Fac Hostile Shots Fired 462 | . 98 11 . 5 135 150 63 Missed 132 | . 23 4 . 1 33 51 20 Damage Taken 5241 | . 768 382 . 186 1672 1418 815 Core 1059 | . 128 38 . 57 196 274 366 Absorbed by Shields . | . . . . . . . . Redirected to Shielding 50 | . . 4 . . 41 5 . Regen/Repaired (Parts) 92 | . 73 . . . 19 . . Core Remaining (%) 58 | 100 . . . 10 64 60 . Volleys Fired 216 | . 47 12 . 5 44 95 13 Largest 3 | . 2 1 . 1 2 3 1 Hottest 135 | . 40 35 . 100 135 75 39 Shots Fired 300 | . 72 12 . 5 50 148 13 Gun 249 | . 64 5 . . 32 138 10 Cannon 38 | . 8 7 . 5 18 . . Launcher 3 | . . . . . . . 3 Special 10 | . . . . . . 10 . Kinetic 203 | . 72 12 . . 14 105 . Thermal 84 | . . . . 5 36 33 10 Explosive 3 | . . . . . . . 3 Electromagnetic . | . . . . . . . . Robot Hit Streak 17 | . 9 4 . 1 3 17 14 Robot Miss Streak 11 | . 4 1 . 2 5 11 . Penetration Max . | . . . . . . . . Secondary Targets 6 | . 3 . . . . 3 . Max Gunslinging Chain 1 | . 1 . . . . 1 . Shots Hit Robots 213 | . 53 7 . 1 43 97 12 Core Hits 123 | . 24 3 . 5 31 44 16 Critical Kills 2 | . . . . . 1 1 . Critical Parts Destroyed 1 | . 1 . . . . . . Critical Strikes 10 | . 1 . . . 4 3 2 Burn 5 | . . . . . 1 2 2 Meltdown 1 | . . . . . 1 . . Destroy 2 | . 1 . . . . 1 . Sever 2 | . . . . . 2 . . Melee Attacks 31 | . 4 . . . 27 . . Impact . | . . . . . . . . Slashing 27 | . . . . . 27 . . Piercing . | . . . . . . . . Sneak Attacks 5 | . 4 . . . 1 . . Combat Hostiles . | . . . . . . . . Follow-up Attacks . | . . . . . . . . Damage Inflicted 7037 | . 641 123 . 604 3324 1652 693 Guns 2718 | . 517 36 . . 303 1648 214 Cannons 985 | . 115 87 . 183 600 . . Explosions 2479 | . . . . 421 1653 . 405 Melee 768 | . . . . . 768 . . Ramming 87 | . 9 . . . . 4 74 Kinetic 1995 | . 632 123 . . 159 1081 . Thermal 3782 | . . . . 604 2397 567 214 Explosive 405 | . . . . . . . 405 Electromagnetic . | . . . . . . . . Impact . | . . . . . . . . Slashing 768 | . . . . . 768 . . Piercing . | . . . . . . . . Highest Corruption 5 | . . . . . . 1 5 Average Corruption 1 | . . . . . . 1 5 Corruption Purged . | . . . . . . . . Corruption Blocked . | . . . . . . . . Effects 3 | . . . . . . 2 1 Message Errors 1 | . . . . . . 1 . Heat Flow Errors 1 | . . . . . . . 1 Data Loss (major) 1 | . . . . . . 1 . Overload Shots . | . . . . . . . . Overflow Damage 440 | . . . . 84 356 . . Projectiles 274 | . . . . . 274 . . Explosions 153 | . . . . 84 69 . . Melee 13 | . . . . . 13 . . Knockbacks 1 | . 1 . . . . . . Impact . | . . . . . . . . Kinetic 1 | . 1 . . . . . . Secondary . | . . . . . . . . Self-Inflicted Damage 337 | . . . . 132 171 . 34 Shots 5 | . . . . 2 3 . . Rammed 24 | . . . . . . . 24 Targets Rammed 27 | . 2 . . . . 1 24 Kicked 3 | . 2 . . . . 1 . Crushed . | . . . . . . . . Highest Temperature 412 | . 14 17 . 109 412 192 128 Average Temperature 66 | . 5 15 . 42 101 41 31 Received Heat Transfer 1631 | . 306 20 . 33 900 255 117 Effects 1 | . . . . . 1 . . Shutdowns 1 | . . . . . 1 . . Siege Activations . | . . . . . . . . Robots Corrupted . | . . . . . . . . Combat Hostiles . | . . . . . . . . Parts Fried . | . . . . . . . . Impact Corruptions . | . . . . . . . . Robots Melted 2 | . . . . . 1 . 1 Combat Hostiles 2 | . . . . . 1 . 1 Parts Melted 12 | . . . . 1 5 3 3 Heat Transferred 4714 | . . . . 640 2463 1093 518 Parts Sabotaged . | . . . . . . . . Parts Stolen . | . . . . . . . . Parts Stripped . | . . . . . . . . Power Chain Reactions . | . . . . . . . . Alert | -11 -10 -10 -10 -9 -8 -7 -6 ------- Run | Yrd Mat Min Exi Min Mat Fac Fac Peak Influence 590 | . 263 65 . 154 590 409 315 Initial 218 | . . 65 . . 51 218 186 Average 227 | . 132 40 . 85 335 289 261 Maximum Alert Level 2 | . 1 . . . 2 2 1 Low Security (%) 43 | 100 76 100 . 100 25 5 9 Level 1 46 | . 23 . . . 37 94 90 Level 2 10 | . . . . . 36 . . Level 3 . | . . . . . . . . Level 4 . | . . . . . . . . Level 5 . | . . . . . . . . High Security . | . . . . . . . . Max Security . | . . . . . . . . Squads Dispatched 18 | . 3 . . . 5 9 1 Investigation 10 | . 1 . . . 3 6 . Extermination 2 | . . . . . . 2 . Reinforcement 6 | . 2 . . . 2 1 1 Assault . | . . . . . . . . Garrison . | . . . . . . . . Intercept . | . . . . . . . . Searches Triggered . | . . . . . . . . Construction Impeded 2 | . . . . . 2 . . Haulers Reinforced 1 | . . . . . . . 1 Active Scanning Responses . | . . . . . . . . Cargo Convoy Interrupts . | . . . . . . . . Stealth | -11 -10 -10 -10 -9 -8 -7 -6 --------- Run | Yrd Mat Min Exi Min Mat Fac Fac Distress Signals 4 | . 1 . . . 2 . 1 Communications Jammed . | . . . . . . . . Distress Signals . | . . . . . . . . Times Spotted 99 | . 17 13 . 8 27 26 8 Peak Tracking Total 16 | . 5 16 . 3 4 5 4 Tactical Retreats 4 | . 2 . . . 2 . . Traps | -11 -10 -10 -10 -9 -8 -7 -6 ------- Run | Yrd Mat Min Exi Min Mat Fac Fac Traps Triggered 1 | . 1 . . . . . . Indirectly . | . . . . . . . . Trap Hack Attempts . | . . . . . . . . Triggered . | . . . . . . . . Disarmed . | . . . . . . . . Reprogrammed . | . . . . . . . . Reused . | . . . . . . . . Traps Extracted . | . . . . . . . . Installed . | . . . . . . . . Triggered . | . . . . . . . . Machines | -11 -10 -10 -10 -9 -8 -7 -6 ---------- Run | Yrd Mat Min Exi Min Mat Fac Fac Machines Disabled 14 | . 1 . . 4 9 . . Max in Single Turn 3 | . 1 . . 3 2 . . Machines Repaired . | . . . . . . . . Machines Dismantled . | . . . . . . . . Machines Sabotaged . | . . . . . . . . Overloaded Fab Kills . | . . . . . . . . Hacking | -11 -10 -10 -10 -9 -8 -7 -6 --------- Run | Yrd Mat Min Exi Min Mat Fac Fac Machines Accessed 21 | . 4 . 4 . 3 8 2 Terminals 11 | . 2 . . . 2 5 2 Fabricators 2 | . . . . . . 2 . Repair Stations 2 | . 1 . . . 1 . . Recycling Units 1 | . 1 . . . . . . Scanalyzers 1 | . . . . . . 1 . Garrison Access . | . . . . . . . . Total Hacks 102 | . 15 . 49 . 10 24 4 Successful 77 | . 9 . 49 . 7 10 2 Failed 25 | . 6 . . . 3 14 2 Catastrophic 5 | . 1 . . . . 4 . Database Lockouts . | . . . . . . . . Manual 1 | . . . 1 . . . . Terminals 36 | . 10 . . . 7 15 4 Fabricators 5 | . . . . . . 5 . Repair Stations 6 | . 3 . . . 3 . . Recycling Units 2 | . 2 . . . . . . Scanalyzers 4 | . . . . . . 4 . Garrison Access . | . . . . . . . . Terminal Hacks 70 | . 6 . 49 . 5 8 2 Record 59 | . 3 . 49 . 3 3 1 Prototype ID Bank 4 | . . . . . 1 2 1 Open DSF 2 | . . . . . . 2 . Alert Level 3 | . 1 . . . 1 1 . Dispatch Records 1 | . 1 . . . . . . Transport Status 1 | . 1 . . . . . . Fabricator Hacks 1 | . . . . . . 1 . Network Status 1 | . . . . . . 1 . Repair Station Hacks 4 | . 2 . . . 2 . . Scan Component 2 | . 1 . . . 1 . . Repair 2 | . 1 . . . 1 . . Recycling Unit Hacks 1 | . 1 . . . . . . Report Inventory 1 | . 1 . . . . . . Scanalyzer 1 | . . . . . . 1 . Insert Component 1 | . . . . . . 1 . Garrison Access Hacks . | . . . . . . . . Unauthorized Hacks . | . . . . . . . . Terminals . | . . . . . . . . Fabricators . | . . . . . . . . Repair Stations . | . . . . . . . . Recycling Units . | . . . . . . . . Scanalyzers . | . . . . . . . . Garrison Access . | . . . . . . . . Data Cores Recovered 2 | . . . . . 1 1 . Used . | . . . . . . . . Hacking Detections 16 | . 4 . . . 3 7 2 Full Trace Events 10 | . 1 . . . 3 6 . Feedback Events . | . . . . . . . . Feedback Blocked . | . . . . . . . . Robot Schematics Acquired . | . . . . . . . . Robots Built . | . . . . . . . . Authchips . | . . . . . . . . Time . | . . . . . . . . Total Robot Build Rating . | . . . . . . . . Part Schematics Acquired . | . . . . . . . . Parts Built . | . . . . . . . . Authchips . | . . . . . . . . Time . | . . . . . . . . Total Part Build Rating . | . . . . . . . . Parts Repaired 2 | . 1 . . . 1 . . Time 52 | . 26 . . . 26 . . Parts Recycled . | . . . . . . . . Recycled Matter . | . . . . . . . . Retrieved Matter . | . . . . . . . . Retrieved Components . | . . . . . . . . Parts Scanalyzed 1 | . . . . . . 1 . Part Schematics Acquired . | . . . . . . . . Parts Damaged 1 | . . . . . . 1 . Bothacking | -11 -10 -10 -10 -9 -8 -7 -6 ------------ Run | Yrd Mat Min Exi Min Mat Fac Fac Used RIF Installer . | . . . . . . . . Robots Hacked 6 | . 2 . . . . 4 . Non-combat 5 | . 2 . . . . 3 . Combat 1 | . . . . . . 1 . Robot Hacks Applied 6 | . 2 . . . . 4 . parse_system 2 | . 1 . . . . 1 . no_distress 2 | . 1 . . . . 1 . find_fabricator 1 | . . . . . . 1 . find_dsf 1 | . . . . . . 1 . Relay Couplers Released . | . . . . . . . . Fabnet Peak Effective % . | . . . . . . . . Robots Rewired . | . . . . . . . . Allies Hacked . | . . . . . . . . Hacks Repelled . | . . . . . . . . Allies | -11 -10 -10 -10 -9 -8 -7 -6 -------- Run | Yrd Mat Min Exi Min Mat Fac Fac Total Allies 3 | . . . . 3 . . . Largest Group 3 | . . . . 3 2 . . Highest-Rated Group 40 | . . . . 40 29 . . Highest-Rated Ally 16 | . . . . 16 16 . . Total Orders . | . . . . . . . . Ally Attacks 31 | . . . . 14 17 . . Total Damage 335 | . . . . 153 182 . . Kills 6 | . . . . 4 2 . . Allies Corrupted . | . . . . . . . . Allies Melted . | . . . . . . . . Intel | -11 -10 -10 -10 -9 -8 -7 -6 ------- Run | Yrd Mat Min Exi Min Mat Fac Fac Robot Analysis Total . | . . . . . . . . Derelict Logs Recovered . | . . . . . . . . Drone Launches . | . . . . . . . . Drone Recoveries . | . . . . . . . . Exploration | -11 -10 -10 -10 -9 -8 -7 -6 ------------- Run | Yrd Mat Min Exi Min Mat Fac Fac Turns Passed 4235 | 59 710 183 548 486 1024 1108 117 Spaces Moved 3069 | 43 413 149 437 301 381 1233 112 Core 32 | 19 . . . . 11 . 2 Treads 309 | 24 100 . . . 108 77 . Legs 837 | . 313 48 . 118 70 288 . Wheels 170 | . . . . 170 . . . Hover 781 | . . 101 437 13 192 . 38 Flight 940 | . . . . . . 868 72 Fastest Speed 29 | 50 120 80 80 115 58 29 30 Average Speed 104 | 111 131 92 124 150 177 59 48 Slowest Speed 400 | 160 190 120 150 260 400 250 120 Overloaded Moves . | . . . . . . . . Propulsion Burnouts . | . . . . . . . . Robots Hopped 7 | . . . . . . 7 . Cave-ins Triggered . | . . . . . . . . Exploration Rate (%) 42 | 4 68 39 90 80 27 28 4 Regions Visited 7 Branch Regions 3 Pre-discovered Areas 1 | . . . 1 . . . . Known Exits Taken 5 | . 1 1 1 1 1 . . Unknown Exits Taken 2 | 1 . . . . . 1 . Scrap Searched 3 | . . 1 . 2 . . . Spaces Dug . | . . . . . . . . Terrain Destroyed 218 | . . . . 35 170 . 13 Melee . | . . . . . . . . Projectile 15 | . . . . 2 13 . . AOE 203 | . . . . 33 157 . 13 Terrain Rammed . | . . . . . . . . Walls Destroyed . | . . . . . . . . Machines Disabled . | . . . . . . . . Actions | -11 -10 -10 -10 -9 -8 -7 -6 --------- Run | Yrd Mat Min Exi Min Mat Fac Fac Total 3768 | 54 504 181 443 320 608 1496 162 Wait 170 | . 4 15 . 7 99 45 . Move 3049 | 42 412 148 436 300 380 1219 112 Hop 6 | . . . . . . 6 . Pick Up 97 | 6 15 2 2 4 19 46 3 Fast Attach . | . . . . . . . . Attach 67 | 6 9 2 1 3 17 24 5 Detach 14 | . 1 . . . 3 8 2 Swap 40 | . 6 . 1 1 9 21 2 Drop 50 | . 4 1 3 . 10 31 1 Fire 216 | . 47 12 . 5 44 95 13 Melee 31 | . 4 . . . 27 . . Ram 24 | . . . . . . . 24 Kick 3 | . 2 . . . . 1 . Crush . | . . . . . . . . Escape Stasis . | . . . . . . . . Rewire 1 | . . 1 . . . . . Trap . | . . . . . . . . Miscellaneous . | . . . . . . . . Route ------- -11/Scrapyard -10/Materials (discovered 2 exits: *Mat / *Min) -10/Mines (discovered 2 exits: *Mat / *Exi) -10/Exiles -9/Mines (discovered 2 exits: *Mat x2) -8/Materials -7/Factory (discovered 3 exits: *Fac / *Sto / [*Low]) -6/Factory (discovered 2 exits: [*Fac] / [*Low]) History --------- Turn | Location | Event 4 | -11/Scrapyard | Discovered new exit (range 15) 60 | -11/Scrapyard | Entered Materials 302 | -10/Materials | Build established: Mutant 371 | -10/Materials | Repaired Assault Rifle 427 | -10/Materials | Discovered new exit (range 7) 460 | -10/Materials | Discovered new exit (range 15) 664 | -10/Materials | Core integrity fell below 50% 705 | -10/Materials | Lost 3 parts (1p1n1w) 769 | -10/Materials | Identified exit to Mines 770 | -10/Materials | Entered Mines 781 | -10/Mines | Discovered new exit (range 13) 786 | -10/Mines | Assembled infested the area 830 | -10/Mines | Met 8R-AWN 871 | -10/Mines | Identified exit to Materials 877 | -10/Mines | Lost 4 parts (1p1n2w) 929 | -10/Mines | Received a Rocket Launcher from a helpful Derelict 948 | -10/Mines | Discovered new exit (range 5) 952 | -10/Mines | Identified exit to Exiles 953 | -10/Mines | Entered Exiles 972 | -10/Exiles | Welcomed by 8R-AWN 990 | -10/Exiles | Met EX-HEX 1014 | -10/Exiles | Met EX-BIN 1028 | -10/Exiles | Aligned with FarCom system 1029 | -10/Exiles | Given EX-Vault access code 1072 | -10/Exiles | Opened EX-Vault 1083 | -10/Exiles | Found Prototype Energy Cannon 1084 | -10/Exiles | Identified YOLO Cannon 1116 | -10/Exiles | Warned to stay clear of 0b10 Research branches 1160 | -10/Exiles | Met EX-DEC 1173 | -10/Exiles | Learned location of Zion (-7) 1240 | -10/Exiles | Visited The Gauntlet 1483 | -10/Exiles | Discovered new exit (range 14) 1500 | -10/Exiles | Identified exit to Mines 1501 | -10/Exiles | Left Exiles lab with YOLO Cannon 1501 | -10/Exiles | Entered Mines 1572 | -9/Mines | Assisted by bots powering up and referring to "LRC-V3" 1606 | -9/Mines | Discovered new exit (range 3) 1634 | -9/Mines | Identified exit to Materials 1716 | -9/Mines | Core integrity fell below 20% 1941 | -9/Mines | Discovered exit to Materials (range 10) 1987 | -9/Mines | Entered Materials 1987 | -8/Materials | Accompanied by 2 allies 1987 | -8/Materials | Evolved 4 slots: Propulsion x1, Utility x2, Weapon x1 2333 | -8/Materials | Discovered new exit (range 8) 2386 | -8/Materials | Identified exit to Factory 2525 | -8/Materials | Repaired Hover Unit 2781 | -8/Materials | Lost 4 parts (1p2n1w) 3011 | -8/Materials | Entered Factory 3011 | -7/Factory | Evolved 2 slots: Power x1, Utility x1 3082 | -7/Factory | Identified exit to DSF 3426 | -7/Factory | Discovered new exit (range 4) 3430 | -7/Factory | Identified exit to Storage 3472 | -7/Factory | Build established: Scavenger-Gunner 3737 | -7/Factory | Discovered new exit (range 15) 3858 | -7/Factory | Lost 4 parts (1p2n1w) 4112 | -7/Factory | Discovered new exit (range 15) 4119 | -7/Factory | Entered another Factory area 4119 | -6/Factory | Evolved 2 slots: Power x1, Propulsion x1 4120 | -6/Factory | Discovered new exit (range 14) 4202 | -6/Factory | Discovered new exit (range 14) 4236 | -6/Factory | Self-destructed Last Messages --------------- 04222_ Destabilizing: Core damaged (-34). 04223_ Slammed into P-60 Hacker. 04223_ Imp. Sensor Array destroyed. 04223_ System corrupted by crushing effect (+5). 04224_ Slammed into P-60 Hacker. 04228_ System corrupted: Heat flow error (+165). 04228_ Slammed into P-60 Hacker. 04228_ Imp. Hover Unit destroyed. 04229_ Slammed into P-60 Hacker. 04229_ Slug penetrates P-60 Hacker. 04229_ Imp. Targeting Computer destroyed. 04230_ Slug penetrates Wall. 04230_ Xenon Bombardment Thruster destroyed. 04230_ Slammed into P-60 Hacker. 04232_ Penetrated by Slug. 04232_ Weight Redist. System destroyed. 04233_ Slammed into P-60 Hacker. 04233_ Penetrated by Slug. 04234_ Slammed into P-60 Hacker. [Achievement: 5k Club] Map ----- +----------------------------------------------------+ | # * ???????????????? | | # ???????????????? | | # ??????????????? | | # ???????????????? | | # ############ #########+###?????????????? | | # #???# * % #?????????????? | | # #???# """ #?????????????? | | # #???# """ ???????????????? | | # #???# # """ "" ""???????????????? | | # ????# + "F "????????????????? | | # ????# # ! """"????????????????? | | # ????# ###+########?##??????????????? | | # ????# #?# ## ! ## ????????????? | | # ?????###########?# ## ## ? ?????????? | | ???? ?????????????????# ## ## ????????? | | ??????????????????????# ## """## """ """????????? | | ???????????????##?????# ## """## """ """????????? | | ???????????#####T ##### ## """## """ """ ???????? | | ???????????# # ## ???????? | | ???????????# th###+####=""" """ ???????? | | ????????? h %%%+!""" """ #???? | | ??????????####+####### %###*""" """ #???? | | ?????????????????????# %#?#% #???? | | ??????????????????#### %#?# #???? | | ??????????????????+ p%%#?##############???? | | ??????????????????#### @ %% #??????????????????? | | ?????????????????????###### #??????????????????? | | ??????????????????????????# #??????????????????? | | ?????????????????????????? #?????????????????? | | ?????????????????????????# #?????????????????? | | ?????????????????????????# < +?????????????????? | | ?????????????????????????# # ????????????????? | | ?????????????????????????# # ???????????????? | | ?????????????????????????### ###? !??????????????? | | ???????????????????????????# #???###?????????????? | | ???????????????????????????# #???????????????????? | | ???????????????????????????# #???????????????????? | | ???????????????????????????? #???????????????????? | | ???????????????????????????? ????????????????????? | | ???????????????????????????? ????????????????????? | | ???????????????????????????? ????????????????????? | | ?????????????????????????????????????????????????? | | ?????????????????????????????????????????????????? | | ?????????????????????????????????????????????????? | | ?????????????????????????????????????????????????? | | ?????????????????????????????????????????????????? | | ?????????????????????????????????????????????????? | | ?????????????????????????????????????????????????? | | ?????????????????????????????????????????????????? | | ?????????????????????????????????????????????????? | +----------------------------------------------------+ Best States ------------- Heat Dissipation 37 Energy Generation 28 Energy Capacity 540 Matter Stores 300 Matter Capacity 300 Sight Range 16 Robot Scan Range 15 Terrain Scan Density 10 ECM Strength 2 Additional Mass Support 6 Core Shielding 20 Evasion (%) 64 Targeting Accuracy 12 Recoil Reduction 2 Particle Charging 15 Kinecelleration 30 Item Schematics ----------------- None Robot Schematics ------------------ None Fabricated ------------ Nothing Alien Tech Used ----------------- None Achievements -------------- 5k Club Crack Shot I Survived The Infestation Made in Tau Ceti IV Remodeling Risk Taker Slippery One Tourist Universal Adapter Challenges ------------ None Game ------ Seed ControlGodChronowheel Manual? 0 Play Time 01:21:07 Cumulative 6.4 hours Start 2024.03.31 @ 13:12:40 End 2024.03.31 @ 14:32:13 Sessions 1 Manual Loads 0 Difficulty Rogue Special Mode None Game No. 17 Rogue 17 Adventurer 0 Explorer 0 Win Type - Total 0 Types 0/0/0/0/0/0/0/0/0 Lore% 10 Gallery% 11 Achievement% 7 Wizard Run 0 Options --------- Layout 1 ASCII 0 Keyboard 0 Movement Numpad Keybinds 0 Fullscreen 1 Font 32/SmallcapsGlow Map View 50x35 Zoom Use 0% Tactical HUD 1 Map Filters NONE Filters NONE Steam 1 RUN: 69cec558-1419-4135-b66d-3e8380eb309c